bitfinex-derivatives/quotes_SOLF0:USTF0_20240906
["timestamp","ask_amount","ask_price","bid_price","bid_amount"]
[1725589363202,3.88229628,130.66,130.63,0.05236726]
[1725589367108,3.8279,130.65,130.63,0.05236726]
[1725589367307,0.05459628,130.66,130.63,0.05236726]
[1725589368104,9.46459628,130.66,130.63,0.05236726]
[1725589368302,9.41,130.65,130.63,0.05236726]
[1725589369309,13.29229628,130.66,130.63,0.05236726]
[1725589372911,0.05459628,130.66,130.63,3.88086726]
[1725589381023,9.41,130.65,130.63,0.05236726]
[1725589382021,13.2379,130.65,130.63,0.05236726]
[1725589383526,9.41,130.65,130.63,0.05236726]
[1725589384927,0.05459628,130.66,130.63,3.88076726]
[1725589385828,3.88229628,130.66,130.63,0.05236726]
[1725589386535,9.41,130.65,130.63,0.05236726]
[1725589387123,13.2379,130.65,130.63,0.05236726]
[1725589388228,9.41,130.65,130.63,0.05236726]
[1725589392935,13.238,130.65,130.63,0.05236726]
[1725589393527,3.8282,130.64,130.63,0.05236726]
[1725589394028,9.41,130.65,130.63,0.05236726]
[1725589394622,13.2381,130.65,130.63,0.05236726]
[1725589399040,3.8282,130.64,130.63,0.05236726]
[1725589399934,13.2382,130.64,130.63,0.05236726]
[1725589401628,13.2382,130.64,130.5,1.4251]
[1725589401629,9.41,130.64,130.5,1.4251]
[1725589401848,9.41,130.6,130.53,9.41]
[1725589402029,9.41,130.6,130.53,13.28659866]
[1725589402537,3.8297,130.59,130.55,3.8306]
[1725589402735,0.05097654,130.58,130.55,3.88043255]
[1725589403140,0.05097654,130.58,130.55,0.04983255]
[1725589403336,13.29107654,130.58,130.55,0.04983255]
[1725589405139,0.05097654,130.58,130.55,0.04983255]
[1725589405347,0.05097654,130.58,130.55,3.88053255]
[1725589406239,9.41,130.57,130.55,0.04983255]
[1725589407737,0.05097654,130.58,130.55,0.04983255]
[1725589408138,0.05097654,130.58,130.57,3.8303]
[1725589408444,9.41,130.66,130.57,9.41]
[1725589408641,112.01342313,130.68,130.53,3.80200153]
[1725589408642,1.4364,130.67,130.59,9.41]
[1725589408842,1.4364,130.67,130.6,13.27386922]
[1725589409044,121.42342313,130.68,130.62,9.41]
[1725589409548,0.05282129,130.66,130.64,0.0541529]
[1725589412936,9.46282129,130.66,130.64,0.0541529]
[1725589413343,9.41,130.65,130.64,0.0541529]
[1725589414546,13.2379,130.65,130.64,0.0541529]
[1725589420455,13.2379,130.65,130.57,10.739]
[1725589420456,3.8286,130.63,130.58,3.8299]
[1725589420653,3.87885801,130.62,130.58,3.8299]
[1725589420852,3.87885801,130.62,130.59,3.8297]
[1725589421351,9.41,130.61,130.57,1.329]
[1725589421551,13.16649563,130.61,130.59,0.05151346]
[1725589422048,9.41,130.6,130.59,0.05151346]
[1725589422348,9.41,130.61,130.59,0.05151346]
[1725589423652,13.31677137,130.62,130.59,0.05151346]
[1725589423857,0.05145083,130.62,130.59,0.05151346]
[1725589424161,0.05145083,130.62,130.6,13.23046369]
[1725589424451,1.3751,130.67,130.6,15.93166369]
[1725589425251,0.05630146,130.65,130.62,0.05133823]
[1725589426756,0.05630146,130.65,130.63,3.8285]
[1725589428554,0.05630146,130.65,130.64,3.8282]
[1725589428958,0.05630146,130.65,130.63,3.8284]
[1725589430062,0.05630146,130.65,130.62,0.05133823]
[1725589430063,0.05630146,130.65,130.64,3.8282]
[1725589430262,0.05630146,130.65,130.62,0.05133823]
[1725589430664,0.05630146,130.65,130.63,3.8284]
[1725589432149,0.05630146,130.65,130.62,0.05133823]
[1725589432352,0.05630146,130.65,130.64,3.8282]
[1725589437161,0.05630146,130.65,130.62,0.05133823]
[1725589437866,0.05630146,130.65,130.63,3.8283]
[1725589438261,0.05630146,130.65,130.62,0.05133823]
[1725589439369,0.05630146,130.65,130.62,3.88003823]
[1725589443271,0.05630146,130.65,130.63,3.8285]
[1725589443763,0.05630146,130.65,130.62,0.05133823]
[1725589443968,0.05630146,130.65,130.64,3.8282]
[1725589444570,6.6564,130.71,130.62,23.55]
[1725589445467,0.05029824,130.68,130.65,0.05537401]
[1725589446472,0.05029824,130.68,130.66,3.8274]
[1725589446974,0.05029824,130.68,130.65,3.88317401]
[1725589447965,0.05029824,130.68,130.65,0.05537401]
[1725589448567,0.05029824,130.68,130.66,3.8274]
[1725589448866,0.05029824,130.68,130.65,0.05537401]
[1725589449274,0.05029824,130.68,130.67,3.8273]
[1725589457079,1.411,130.74,130.66,1.3512]
[1725589457676,1.411,130.74,130.7,3.8263]
[1725589458079,0.05610274,130.73,130.71,0.05081779]
[1725589458581,9.41,130.72,130.71,0.05081779]
[1725589458881,9.41,130.72,130.63,9.41]
[1725589459078,9.41,130.69,130.63,9.41]
[1725589459278,9.41,130.71,130.63,13.15145739]
[1725589459983,0.04970772,130.68,130.66,0.05653927]
[1725589460185,0.05859322,130.68,130.66,0.05653927]
[1725589460483,0.05859322,130.68,130.67,3.8273]
[1725589467177,0.05859322,130.68,130.66,3.88403927]
[1725589468187,0.05859322,130.68,130.66,0.05653927]
[1725589475284,3.88569322,130.68,130.66,0.05653927]
[1725589475789,0.05859322,130.68,130.66,0.05653927]
[1725589477489,3.8273,130.67,130.66,0.05653927]
[1725589480189,13.2373,130.67,130.66,0.05653927]
[1725589480579,3.8286,130.63,130.59,3.8294]
[1725589480780,3.78051967,130.62,130.59,3.8294]
[1725589480982,9.41,130.64,130.59,3.8294]
[1725589481180,1.4421,130.68,130.6,3.8292]
[1725589481391,9.41,130.65,130.6,3.8292]
[1725589481589,0.04993455,130.64,130.61,0.05408605]
[1725589483189,3.87813455,130.64,130.61,0.05408605]
[1725589486084,0.04993455,130.64,130.61,9.46408605]
[1725589487395,0.04993455,130.64,130.62,3.8288]
[1725589488288,0.04993455,130.64,130.61,3.88308605]
[1725589492097,0.04993455,130.64,130.61,13.29308605]
[1725589492594,0.04993455,130.64,130.62,9.41]
[1725589492898,3.86052851,130.69,130.63,9.41]
[1725589493100,5.2058,130.7,130.65,13.2377]
[1725589493601,3.81575648,130.69,130.65,13.2377]
[1725589493993,0.05176465,130.68,130.66,0.05796712]
[1725589500506,0.05176465,130.68,130.66,3.88556712]
[1725589501500,0.05176465,130.68,130.67,3.8273]
[1725589501700,0.05176465,130.68,130.66,0.05796712]
[1725589501901,0.05176465,130.68,130.67,13.2373]
[1725589502102,0.28139088,130.75,130.67,9.41]
[1725589502297,3.9971,130.77,130.71,9.41]
[1725589502506,7.88846842,130.77,130.71,9.41]
[1725589503008,0.05036152,130.75,130.73,0.05629588]
[1725589504211,3.87556152,130.75,130.73,0.05629588]
[1725589505807,3.8253,130.74,130.73,0.05629588]
[1725589507707,3.87546152,130.75,130.73,0.05629588]
[1725589507915,0.05036152,130.75,130.73,0.05629588]
[1725589508814,0.05036152,130.75,130.73,3.88189588]
[1725589509005,0.05036152,130.75,130.73,0.05629588]
[1725589511614,0.05036152,130.75,130.73,3.88179588]
[1725589511816,0.05036152,130.75,130.73,0.05629588]
[1725589513315,0.05036152,130.75,130.74,3.8253]
[1725589513517,1.4018,130.81,130.74,23.51]
[1725589513723,2.8152,130.85,130.78,23.51]
[1725589513912,0.28123096,130.84,130.78,23.51]
[1725589514217,4.1326309,130.84,130.78,23.51]
[1725589514414,0.28123096,130.83,130.79,3.8236]
[1725589514716,0.05262886,130.82,130.8,0.05381677]
[1725589515914,0.33383623,130.82,130.8,0.05381677]
[1725589517219,3.8232,130.81,130.8,0.05381677]
[1725589518220,3.87562886,130.82,130.8,0.05381677]
[1725589518411,0.05262886,130.82,130.8,0.05381677]
[1725589520613,3.87562886,130.82,130.8,0.05381677]
[1725589520828,23.0,130.96,130.81,23.51]
[1725589521035,1.411,130.91,130.83,23.51]
[1725589521329,3.8214,130.88,130.83,27.3326]
[1725589521628,3.80104818,130.87,130.83,27.3326]
[1725589521921,0.05089868,130.86,130.84,0.05497964]
[1725589522831,3.87279868,130.86,130.84,0.05497964]
[1725589523028,0.05089868,130.86,130.84,0.05497964]
[1725589523322,1.73897923,130.86,130.78,23.51]
[1725589523627,0.28118055,130.85,130.78,23.51]
[1725589523928,3.8224,130.84,130.79,3.8236]
[1725589524225,0.04826759,130.83,130.8,0.05218914]
[1725589525532,3.823,130.82,130.8,0.05218914]
[1725589525718,0.04826759,130.83,130.8,0.05218914]
[1725589525916,1.69879433,130.83,130.8,0.05218914]
[1725589526116,3.8232,130.81,130.8,0.05218914]
[1725589526318,1.41756759,130.83,130.8,0.05218914]
[1725589526830,3.8232,130.82,130.8,0.05218914]
[1725589527325,5.24026759,130.83,130.8,0.05218914]
[1725589527529,1.41756759,130.83,130.8,0.05218914]
[1725589527916,3.8232,130.81,130.8,0.05218914]
[1725589528126,23.51,130.82,130.74,3.825]
[1725589528427,3.8239,130.79,130.74,3.825]
[1725589528726,3.8239,130.79,130.75,3.8249]
[1725589528920,3.87478994,130.79,130.75,3.8249]
[1725589529119,0.05004299,130.78,130.76,0.05826697]
[1725589529329,3.96308735,130.78,130.76,0.05826697]
[1725589530025,3.8244,130.77,130.76,0.05826697]
[1725589530328,3.96308735,130.78,130.76,0.05826697]
[1725589530728,7.78738735,130.78,130.76,0.05826697]
[1725589532022,3.8244,130.77,130.76,0.05826697]
[1725589533428,5.2161,130.77,130.76,0.05826697]
[1725589533825,1.3917,130.77,130.76,0.05826697]
[1725589534429,5.2161,130.77,130.76,0.05826697]
[1725589537621,1.3917,130.77,130.76,0.05826697]
[1725589537821,3.96308735,130.78,130.76,0.05826697]
[1725589539430,7.78728735,130.78,130.76,0.05826697]
[1725589539832,3.8244,130.77,130.76,0.05826697]
[1725589540924,7.78728735,130.78,130.76,0.05826697]
[1725589541129,3.96308735,130.78,130.76,0.05826697]
[1725589543731,0.05004299,130.78,130.76,0.05826697]
[1725589545143,0.05004299,130.78,130.76,3.88296697]
[1725589546636,0.05004299,130.78,130.77,3.8244]
[1725589547143,3.8224,130.84,130.79,3.8236]
[1725589548035,0.05247046,130.83,130.8,0.05748375]
[1725589548232,3.87517046,130.83,130.8,0.05748375]
[1725589549239,3.823,130.82,130.8,0.05748375]
[1725589549743,3.87517046,130.83,130.8,0.05748375]
[1725589550244,3.8232,130.82,130.8,0.05748375]
[1725589550642,23.56247046,130.83,130.8,0.05748375]
[1725589550943,0.28124139,130.82,130.8,0.05748375]
[1725589551138,3.8232,130.81,130.8,0.05748375]
[1725589552033,3.8255,130.74,130.67,3.8272]
[1725589552338,23.51,130.78,130.68,27.469]
[1725589552543,23.51,130.79,130.7,23.51]
[1725589552848,27.28598715,130.79,130.7,23.51]
[1725589553046,0.04942293,130.76,130.73,0.05463073]
[1725589557256,3.8252,130.75,130.73,0.05463073]
[1725589558055,3.8253,130.74,130.73,0.05463073]
[1725589558745,27.3353,130.74,130.73,0.05463073]
[1725589558940,23.51,130.74,130.64,24.9005]
[1725589559143,23.51,130.74,130.64,1.3905]
[1725589559741,3.8262,130.71,130.65,3.8279]
[1725589559946,0.05118109,130.69,130.67,0.05758569]
[1725589561248,3.87798109,130.69,130.67,0.05758569]
[1725589561550,0.05118109,130.69,130.67,0.05758569]
[1725589565656,0.05118109,130.69,130.67,23.56758569]
[1725589565953,0.05118109,130.69,130.67,0.05758569]
[1725589567068,0.05118109,130.69,130.67,3.88478569]
[1725589568758,0.05118109,130.69,130.68,3.827]
[1725589568951,3.8257,130.73,130.68,3.827]
[1725589569452,3.86682755,130.72,130.69,3.8267]
[1725589569855,3.9247046,130.72,130.69,3.8768572]
[1725589570652,0.05787705,130.72,130.69,3.8768572]
[1725589571464,3.91972848,130.72,130.69,3.8768572]
[1725589572054,7.74562848,130.72,130.69,0.0501572]
[1725589573357,3.8262,130.71,130.69,0.0501572]
[1725589574962,3.91972848,130.72,130.69,0.0501572]
[1725589576458,3.8263,130.71,130.69,0.0501572]
[1725589577259,7.74562848,130.72,130.69,0.0501572]
[1725589580369,3.8263,130.71,130.69,0.0501572]
[1725589581368,3.8265,130.7,130.69,0.0501572]
[1725589581663,3.91972848,130.72,130.69,3.8767572]
[1725589581864,0.05787705,130.72,130.69,0.0501572]
[1725589583465,0.05787705,130.72,130.69,3.8768572]
[1725589586877,0.05787705,130.72,130.7,3.8264]
[1725589587876,0.05787705,130.72,130.69,3.8768572]
[1725589589887,0.05787705,130.72,130.69,0.0501572]
[1725589590091,3.08051814,130.72,130.69,0.0501572]
[1725589590290,23.51,130.71,130.69,0.0501572]
[1725589590589,3.8265,130.7,130.69,0.0501572]
[1725589590795,1.4144,130.7,130.61,1.4222]
[1725589591094,23.51,130.67,130.57,23.51]
[1725589591388,3.8278,130.66,130.61,3.8289]
[1725589591595,7.71491481,130.66,130.61,3.8289]
[1725589591890,0.04855707,130.65,130.62,3.88327168]
[1725589592580,3.78541559,130.65,130.62,3.88327168]
[1725589592786,0.04855707,130.65,130.63,3.8284]
[1725589595990,0.04855707,130.65,130.62,3.88327168]
[1725589596291,0.04855707,130.65,130.62,0.05457168]
[1725589602585,0.04855707,130.65,130.62,3.88337168]
[1725589606199,0.04855707,130.65,130.62,0.05457168]
[1725589606701,0.04855707,130.65,130.63,3.8285]
[1725589607795,0.04855707,130.65,130.62,3.88337168]
[1725589608897,3.87645707,130.65,130.62,0.05457168]
[1725589609094,23.55855707,130.65,130.62,0.05457168]
[1725589609398,3.8285,130.63,130.62,0.05457168]
[1725589609599,26.28965707,130.65,130.62,0.05457168]
[1725589611101,3.8285,130.63,130.62,0.05457168]
[1725589611306,27.3385,130.63,130.62,0.05457168]
[1725589611709,3.8293,130.61,130.54,1.3378]
[1725589612411,3.8293,130.61,130.56,3.8303]
[1725589612802,0.05476896,130.6,130.57,0.04896768]
[1725589613709,3.92273598,130.59,130.57,0.04896768]
[1725589618013,9.42,130.58,130.57,0.04896768]
[1725589618319,17.17048973,130.58,130.5,9.42]
[1725589618521,9.42,130.56,130.5,9.42]
[1725589618818,9.42,130.56,130.54,3.8311]
[1725589619215,9.42,130.56,130.54,3.87977595]
[1725589619520,9.47270976,130.56,130.54,3.87977595]
[1725589620020,0.05270976,130.56,130.54,3.87977595]
[1725589621107,0.05270976,130.56,130.55,3.8309]
[1725589622717,1.4367,130.63,130.54,23.55]
[1725589622922,5.2652,130.63,130.55,2.8022]
[1725589623220,1.4367,130.63,130.59,3.8295]
[1725589623612,0.0568855,130.62,130.6,0.04997732]
[1725589624217,0.0568855,130.62,130.6,3.87927732]
[1725589627210,0.0568855,130.62,130.61,3.8291]
[1725589629418,7.65255671,130.66,130.6,0.04997732]
[1725589629419,3.82485671,130.66,130.64,3.8281]
[1725589629617,3.82485671,130.66,130.59,23.55]
[1725589630019,3.82485671,130.66,130.6,1.3385]
[1725589630521,0.04870313,130.64,130.62,3.88318729]
[1725589631719,0.04870313,130.64,130.63,3.8285]
[1725589638834,1.4452,130.7,130.62,0.05468729]
[1725589639027,24.8734,130.72,130.63,23.55]
[1725589639231,23.55,130.74,130.71,3.826]
[1725589639429,3.85166618,130.74,130.66,1.3736]
[1725589639627,5.2077,130.75,130.66,1.3736]
[1725589639827,0.04992857,130.72,130.7,3.8264]
[1725589640030,3.90718949,130.72,130.7,3.8264]
[1725589640334,0.04992857,130.72,130.7,3.8264]
[1725589640931,0.04992857,130.72,130.71,3.8262]
[1725589641327,9.41,130.77,130.7,9.41]
[1725589641529,9.41,130.77,130.73,3.8253]
[1725589642032,3.80558067,130.76,130.69,23.51]
[1725589642229,0.05785586,130.74,130.71,0.05860534]
[1725589642628,0.05785586,130.74,130.72,3.8259]
[1725589643032,0.05785586,130.74,130.71,0.05860534]
[1725589643432,0.05785586,130.74,130.72,3.8259]
[1725589643633,0.05785586,130.74,130.71,0.05860534]
[1725589643939,0.05785586,130.74,130.72,3.8259]
[1725589645240,0.05785586,130.74,130.73,3.8256]
[1725589647037,0.05785586,130.74,130.71,3.88450534]
[1725589647235,0.05785586,130.74,130.71,0.05860534]
[1725589648841,0.05785586,130.74,130.71,3.88480534]
[1725589649739,0.05785586,130.74,130.71,0.05860534]
[1725589650133,0.05785586,130.74,130.71,3.88470534]
[1725589652139,0.05785586,130.74,130.71,0.05860534]
[1725589653740,3.88335586,130.74,130.71,0.05860534]
[1725589654939,3.8256,130.73,130.71,0.05860534]
[1725589655245,0.05785586,130.74,130.71,0.05860534]
[1725589655645,3.88315586,130.74,130.71,0.05860534]
[1725589657350,3.8257,130.73,130.71,0.05860534]
[1725589658746,3.88315586,130.74,130.71,0.05860534]
[1725589659542,0.05785586,130.74,130.71,0.05860534]
[1725589660852,0.05785586,130.74,130.71,3.88470534]
[1725589661548,3.88335586,130.74,130.71,0.05860534]
[1725589663049,3.8257,130.73,130.71,0.05860534]
[1725589663545,3.8259,130.72,130.71,0.05860534]
[1725589667053,0.05785586,130.74,130.71,0.05860534]
[1725589668047,0.05785586,130.74,130.72,3.8258]
[1725589674456,0.05785586,130.74,130.71,3.88470534]
[1725589677445,0.05785586,130.74,130.72,3.8258]
[1725589679657,0.05785586,130.74,130.73,3.8256]
[1725589681253,565.0,130.85,130.75,3.8247]
[1725589681551,9.41,130.82,130.75,9.41]
[1725589681861,4.10480229,130.81,130.75,9.41]
[1725589682057,0.28130229,130.8,130.75,9.41]
[1725589682355,0.0539727,130.79,130.76,0.05636589]
[1725589683464,0.0539727,130.79,130.76,3.88096589]
[1725589683656,0.0539727,130.79,130.76,0.05636589]
[1725589683854,0.0539727,130.79,130.78,3.8241]
[1725589687260,30.96615427,130.91,130.79,3.8238]
[1725589687261,45.98,130.9,130.79,3.8238]
[1725589687459,9.69126575,130.85,130.79,3.8238]
[1725589687657,0.28126575,130.84,130.79,3.8238]
[1725589688267,0.05462545,130.83,130.8,3.87263817]
[1725589688468,0.05462545,130.83,130.8,13.28263817]
[1725589689164,0.05462545,130.83,130.81,3.8232]
[1725589689372,0.05462545,130.83,130.8,9.45913817]
[1725589691470,0.05462545,130.83,130.8,13.28243817]
[1725589696565,0.05462545,130.83,130.8,3.87243817]
[1725589698268,0.05462545,130.83,130.81,3.8232]
[1725589698568,0.05462545,130.83,130.81,9.41]
[1725589698769,0.05462545,130.83,130.82,9.41]
[1725589699070,0.05462545,130.83,130.82,13.233]
[1725589700165,0.05462545,130.83,130.82,3.823]
[1725589703872,0.05462545,130.83,130.8,0.04913817]
[1725589704066,0.33576445,130.83,130.8,0.04913817]
[1725589704266,0.05462545,130.83,130.8,0.04913817]
[1725589704466,0.3358154,130.83,130.8,0.04913817]
[1725589704875,4.1587154,130.83,130.8,0.04913817]
[1725589705071,3.87752545,130.83,130.8,0.04913817]
[1725589705963,3.823,130.82,130.8,0.04913817]
[1725589707472,3.8232,130.81,130.8,0.04913817]
[1725589709766,1.4214,130.83,130.74,9.41]
[1725589709972,0.28124639,130.82,130.76,9.41]
[1725589710175,10.8314,130.83,130.77,9.41]
[1725589710982,0.05281877,130.81,130.79,0.05684036]
[1725589711279,3.87631877,130.81,130.79,0.05684036]
[1725589714672,3.8235,130.8,130.79,0.05684036]
[1725589727585,0.05281877,130.81,130.79,0.05684036]
[1725589727779,0.05281877,130.81,130.79,9.46684036]
[1725589728278,0.05281877,130.81,130.79,13.29064036]
[1725589729686,0.05281877,130.81,130.79,9.46684036]
[1725589735791,0.05281877,130.81,130.79,0.05684036]
[1725589736295,9.46281877,130.81,130.79,0.05684036]
[1725589736592,9.69127263,130.8,130.71,9.41]
[1725589736889,9.41,130.78,130.71,9.41]
[1725589737193,13.32436707,130.78,130.71,9.41]
[1725589737387,0.05834396,130.76,130.71,9.41]
[1725589737689,0.05834396,130.76,130.73,0.04817252]
[1725589738294,0.05834396,130.76,130.73,3.87367252]
[1725589739795,0.05834396,130.76,130.74,3.8252]
[1725589740588,9.46834396,130.76,130.66,1.428]
[1725589740791,9.41,130.76,130.69,9.41]
[1725589741093,13.27334807,130.76,130.69,9.41]
[1725589741288,3.825,130.75,130.69,9.41]
[1725589741698,0.05103773,130.73,130.71,0.05031933]
[1725589745305,3.8259,130.72,130.71,0.05031933]
[1725589749901,3.87673773,130.73,130.71,0.05031933]
[1725589750099,0.05103773,130.73,130.71,0.05031933]
[1725589751399,0.05103773,130.73,130.71,3.87631933]
[1725589752501,0.05103773,130.73,130.72,13.2359]
[1725589753602,7.58615834,130.77,130.73,3.8254]
[1725589753793,7.58615834,130.77,130.73,13.2354]
[1725589754703,0.05334728,130.76,130.74,0.05248903]
[1725589755302,0.05334728,130.76,130.74,3.87778903]
[1725589757200,0.05334728,130.76,130.75,3.825]
[1725589757596,0.05334728,130.76,130.75,13.235]
[1725589761999,0.05334728,130.76,130.75,3.825]
[1725589771112,0.05334728,130.76,130.75,13.235]
[1725589772011,2.7296,130.83,130.79,3.8237]
[1725589772211,10.33767461,130.83,130.79,3.8237]
[1725589772417,2.7296,130.83,130.76,9.41]
[1725589773015,6.49162776,130.83,130.76,9.41]
[1725589773214,0.05134634,130.81,130.78,0.05082555]
[1725589773430,0.05134634,130.81,130.78,3.87482555]
[1725589773616,0.05134634,130.81,130.78,0.05082555]
[1725589773923,9.46134634,130.81,130.78,0.05082555]
[1725589774123,3.8235,130.8,130.78,0.05082555]
[1725589775424,3.8238,130.79,130.78,0.05082555]
[1725589779835,13.2336,130.8,130.78,0.05082555]
[1725589780031,3.8236,130.8,130.78,0.05082555]
[1725589786055,3.8236,130.8,130.72,84.25555474]
[1725589786056,9.69124237,130.79,130.59,232.23084797]
[1725589786355,9.41,130.77,130.69,9.41]
[1725589786555,9.41,130.75,130.69,9.41]
[1725589786756,17.00402521,130.75,130.7,3.8262]
[1725589786952,17.00402521,130.75,130.71,0.05283555]
[1725589787154,0.05199574,130.74,130.71,0.05283555]
[1725589787850,0.05199574,130.74,130.71,3.87893555]
[1725589790862,0.05199574,130.74,130.71,9.46283555]
[1725589791056,0.05199574,130.74,130.73,9.41]
[1725589791464,0.05199574,130.74,130.73,13.2356]
[1725589791854,0.05199574,130.74,130.73,3.8256]
[1725589795061,1.349,130.81,130.73,9.41]
[1725589795257,1.349,130.81,130.78,9.41]
[1725589795456,3.76202776,130.83,130.78,9.41]
[1725589796153,0.05706923,130.82,130.79,3.8723145]
[1725589800255,0.05706923,130.82,130.79,0.0485145]
[1725589800256,9.46706923,130.82,130.79,0.0485145]
[1725589801367,0.05706923,130.82,130.8,3.8235]
[1725589802359,0.05706923,130.82,130.81,3.8232]
[1725589804568,0.05706923,130.82,130.81,13.2332]
[1725589805158,0.05706923,130.82,130.81,9.41]
[1725589805364,0.05706923,130.82,130.79,9.4585145]
[1725589806164,0.05706923,130.82,130.81,13.2332]
[1725589808874,0.05706923,130.82,130.81,3.8232]
[1725589809271,1.3327,130.87,130.83,3.8225]
[1725589810364,3.83747912,130.86,130.84,0.05825616]
[1725589811964,0.0490666,130.86,130.84,0.05825616]
[1725589813677,3.91864214,130.86,130.84,0.05825616]
[1725589813877,0.0490666,130.86,130.84,3.88055616]
[1725589814978,3.94893651,130.86,130.84,0.05825616]
[1725589815178,0.0490666,130.86,130.84,0.05825616]
[1725589815479,3.86481342,130.86,130.84,0.05825616]
[1725589817372,7.68661342,130.86,130.84,0.05825616]
[1725589817975,3.8221,130.85,130.84,0.05825616]
[1725589819385,4.10320858,130.85,130.84,0.05825616]
[1725589819881,9.69110858,130.85,130.75,1.4201]
[1725589820089,9.41,130.82,130.75,10.8301]
[1725589820585,3.8233,130.81,130.75,10.8301]
[1725589820783,0.04864695,130.79,130.77,0.05499166]
[1725589824981,0.32987903,130.79,130.77,0.05499166]
[1725589825186,9.73987903,130.79,130.77,0.05499166]
[1725589825387,9.45864695,130.79,130.77,0.05499166]
[1725589825598,0.28124728,130.78,130.77,0.05499166]
[1725589826093,9.45864695,130.79,130.77,0.05499166]
[1725589826386,0.04864695,130.79,130.77,0.05499166]
[1725589826590,0.04864695,130.79,130.77,9.46499166]
[1725589827297,0.04864695,130.79,130.77,13.28919166]
[1725589827786,0.04864695,130.79,130.78,3.8241]
[1725589828184,0.04864695,130.79,130.78,13.2341]
[1725589830488,0.04864695,130.79,130.77,13.28929166]
[1725589830791,0.04864695,130.79,130.77,3.87929166]
[1725589831400,0.04864695,130.79,130.77,0.05499166]
[1725589833293,0.04864695,130.79,130.77,3.87939166]
[1725589837300,0.04864695,130.79,130.78,3.8241]
[1725589839099,0.04864695,130.79,130.77,3.87919166]
[1725589839700,0.04864695,130.79,130.77,0.05499166]
[1725589843602,3.87254695,130.79,130.77,0.05499166]
[1725589843806,5.19044695,130.79,130.77,0.05499166]
[1725589846000,3.8241,130.78,130.77,0.05499166]
[1725589846200,10.77654695,130.79,130.74,3.8252]
[1725589846201,13.50834695,130.79,130.74,3.8252]
[1725589846408,13.50834695,130.79,130.68,1.4006]
[1725589846409,9.41,130.76,130.69,9.41]
[1725589846704,27.07834695,130.79,130.69,9.41]
[1725589846705,9.41,130.75,130.69,9.41]
[1725589846900,13.15385315,130.75,130.7,3.8264]
[1725589847106,3.8253,130.74,130.67,1.4249]
[1725589847303,0.04927691,130.72,130.69,0.05166068]
[1725589848295,0.04927691,130.72,130.69,3.87836068]
[1725589849509,0.04927691,130.72,130.69,13.28836068]
[1725589852513,0.04927691,130.72,130.6,2.7505]
[1725589852514,3.8268,130.69,130.6,2.7505]
[1725589852719,9.41,130.69,130.63,9.41]
[1725589853014,13.30983789,130.69,130.63,9.41]
[1725589853603,0.05519941,130.67,130.65,0.05503424]
[1725589860912,3.88259941,130.67,130.65,0.05503424]
[1725589861107,0.05519941,130.67,130.65,0.05503424]
[1725589866007,0.05519941,130.67,130.65,3.88293424]
[1725589867314,0.05519941,130.67,130.65,0.05503424]
[1725589869416,3.88279941,130.67,130.65,0.05503424]
[1725589873122,27.42279941,130.67,130.65,0.05503424]
[1725589873426,3.8276,130.66,130.65,0.05503424]
[1725589874218,27.42259941,130.67,130.65,0.05503424]
[1725589874423,0.05519941,130.67,130.65,0.05503424]
[1725589874923,0.05519941,130.67,130.65,3.88273424]
[1725589875514,0.05519941,130.67,130.66,3.8276]
[1725589879025,0.05519941,130.67,130.65,0.05503424]
[1725589879026,0.05519941,130.67,130.65,3.88283424]
[1725589879831,0.05519941,130.67,130.65,0.05503424]
[1725589880521,0.05519941,130.67,130.65,9.46503424]
[1725589881320,3.8256,130.73,130.65,9.46503424]
[1725589881521,111.10175682,130.72,130.65,9.46503424]
[1725589881722,111.10175682,130.72,130.65,10.78353424]
[1725589881917,3.7663506,130.71,130.65,10.78353424]
[1725589882116,3.7663506,130.71,130.67,9.41]
[1725589882319,0.04990476,130.7,130.68,3.87766557]
[1725589884124,0.04990476,130.7,130.69,3.8268]
[1725589884325,9.41,130.75,130.69,9.41]
[1725589884524,1.3687,130.76,130.71,9.41]
[1725589884717,1.3687,130.76,130.73,3.8255]
[1725589884718,3.73705648,130.76,130.73,3.8255]
[1725589884920,13.2339,130.79,130.73,3.8255]
[1725589885523,0.05384908,130.77,130.75,0.05783581]
[1725589886229,23.56384908,130.77,130.75,0.05783581]
[1725589887026,27.38834908,130.77,130.75,0.05783581]